bitfinex/quotes_SOLUSD_20251202
["timestamp","ask_amount","ask_price","bid_price","bid_amount"]
[1764712968423,8.58,139.43,139.41,12.04630779]
[1764712969082,7.92,139.43,139.41,12.71630779]
[1764712969282,7.92,139.43,139.41,12.04630779]
[1764712969499,7.92,139.43,139.41,12.71630779]
[1764712969707,8.58,139.43,139.41,12.04630779]
[1764712970208,8.58,139.43,139.41,7.17308657]
[1764712970400,8.58,139.43,139.41,12.04630779]
[1764712971101,7.92,139.43,139.41,12.04630779]
[1764712971416,7.92,139.43,139.42,0.67]
[1764712971998,7.92,139.43,139.41,12.71630779]
[1764712972511,7.92,139.43,139.41,12.04630779]
[1764712972711,8.58,139.43,139.41,12.04630779]
[1764712975405,8.58,139.43,139.41,7.17308657]
[1764712975722,0.66,139.42,139.36,18.60857662]
[1764712975894,0.66,139.42,139.38,4.87322122]
[1764712976096,0.66,139.44,139.41,4.87322122]
[1764712976310,7.92,139.43,139.41,12.04582891]
[1764712976794,8.58,139.43,139.41,12.04582891]
[1764712977315,8.58,139.43,139.41,7.17260769]
[1764712978794,0.66,139.42,139.39,4.87322122]
[1764712979089,0.66,139.42,139.39,12.04717945]
[1764712979491,0.66,139.42,139.4,4.87322122]
[1764712979923,0.66,139.42,139.39,30.65246892]
[1764712980710,0.66,139.42,139.39,7.17395823]
[1764712981194,0.66,139.42,139.39,12.04717945]
[1764712981595,0.66,139.42,139.39,7.17395823]
[1764712982013,0.66,139.42,139.39,12.04717945]
[1764712985725,7.92,139.41,139.4,5.54322122]
[1764712986101,7.92,139.42,139.4,5.54322122]
[1764712986297,0.3,139.43,139.41,4.87322122]
[1764712986493,0.66,139.45,139.42,4.87322122]
[1764712986698,7.92,139.44,139.42,5.54322122]
[1764712987020,0.96,139.46,139.42,0.67]
[1764712987323,0.96,139.46,139.39,25.1092477]
[1764712987324,5.53322122,139.45,139.41,4.87322122]
[1764712987500,7.92,139.44,139.4,4.87322122]
[1764712987822,8.58,139.44,139.41,7.17308657]
[1764712988023,0.66,139.43,139.41,7.17308657]
[1764712989230,0.66,139.43,139.41,12.04630779]
[1764712990909,8.58,139.43,139.41,12.04630779]
[1764712991731,0.96,139.46,139.42,5.51322122]
[1764712991931,7.92,139.44,139.43,4.87322122]
[1764712992263,21.18208522,139.48,139.43,4.87322122]
[1764712992264,0.66,139.48,139.43,4.87322122]
[1764712992535,0.66,139.48,139.46,4.87322122]
[1764712992712,0.66,139.48,139.44,25.1004016]
[1764712992913,0.66,139.48,139.44,29.97362282]
[1764712993631,0.66,139.48,139.44,7.17154331]
[1764712993632,5.53322122,139.48,139.44,7.17154331]
[1764712994051,0.66,139.47,139.44,7.17154331]
[1764712994410,0.66,139.47,139.44,29.97362282]
[1764712994920,7.92,139.46,139.42,12.0457933]
[1764712995306,0.66,139.45,139.42,12.0457933]
[1764712995510,8.80994492,139.49,139.44,4.87322122]
[1764712995720,7.92,139.49,139.43,0.64]
[1764712995905,8.58,139.49,139.46,4.87322122]
[1764712996329,0.66,139.48,139.47,7.17000071]
[1764712996524,0.66,139.48,139.46,12.04328395]
[1764712996916,8.58,139.49,139.46,12.04328395]
[1764712997115,8.58,139.49,139.47,4.87322122]
[1764712997740,0.66,139.48,139.46,29.96957105]
[1764712997913,0.66,139.48,139.46,7.17006273]
[1764712998113,0.66,139.48,139.45,12.04408982]
[1764712998540,0.66,139.48,139.45,25.0984412]
[1764712998840,0.66,139.48,139.45,29.97166242]
[1764712999028,0.66,139.48,139.45,12.04408982]
[1764712999939,0.66,139.48,139.45,7.1708686]
[1764713000639,0.3,139.47,139.45,7.1708686]
[1764713001042,8.58,139.5,139.46,5.51322122]
[1764713001339,0.3,139.53,139.47,4.87322122]
[1764713001528,0.3,139.53,139.48,4.87322122]
[1764713001529,0.66,139.5,139.48,4.87322122]
[1764713001721,8.58,139.5,139.48,4.87322122]
[1764713001922,8.58,139.5,139.45,25.7384412]
[1764713002119,7.92,139.5,139.48,4.87322122]
[1764713002336,7.92,139.5,139.49,7.16897268]
[1764713003344,0.66,139.5,139.49,7.16897268]
[1764713003528,8.58,139.5,139.49,7.16897268]
[1764713004145,7.92,139.5,139.49,12.0421939]
[1764713004342,0.66,139.52,139.49,25.09140439]
[1764713004533,8.58,139.52,139.5,4.87322122]
[1764713004719,0.66,139.54,139.5,4.87322122]
[1764713004923,7.92,139.52,139.51,4.87322122]
[1764713005153,7.92,139.52,139.5,0.64]
[1764713005445,7.92,139.52,139.51,4.87322122]
[1764713006449,7.92,139.52,139.51,12.04116617]
[1764713006748,8.58,139.53,139.51,12.04116617]
[1764713007124,0.66,139.53,139.51,12.04116617]
[1764713007330,8.58,139.53,139.51,12.04116617]
[1764713008252,1.0,139.52,139.51,12.04116617]
[1764713010255,1.0,139.52,139.51,7.16794495]
[1764713010435,1.0,139.52,139.51,12.04116617]
[1764713010955,1.0,139.52,139.51,12.68116617]
[1764713011125,1.0,139.52,139.51,12.04116617]
[1764713013050,1.0,139.52,139.51,7.16794495]
[1764713013248,1.0,139.52,139.51,12.04116617]
[1764713018360,1.0,139.52,139.51,10.27728402]
[1764713020337,1.72,139.52,139.51,10.27728402]
[1764713020547,1.72,139.52,139.51,7.16794495]
[1764713020753,1.72,139.52,139.5,7.16822236]
[1764713020953,1.72,139.52,139.5,10.27756143]
[1764713021145,1.72,139.52,139.51,3.10933907]
[1764713021755,1.72,139.52,139.49,25.09092387]
[1764713022058,1.72,139.52,139.5,3.10933907]
[1764713022231,0.71,139.51,139.48,7.16928619]
[1764713023457,7.9,139.5,139.46,3.10933907]
[1764713023844,0.71,139.49,139.46,3.10933907]
[1764713024036,0.71,139.49,139.45,25.09812639]
[1764713024236,0.71,139.49,139.46,3.10933907]
[1764713026458,0.71,139.49,139.47,7.17000071]
[1764713026849,0.71,139.49,139.47,10.27933978]
[1764713027563,8.61,139.51,139.48,3.10933907]
[1764713027945,0.71,139.5,139.48,3.10933907]
[1764713028346,0.71,139.5,139.48,7.16928289]
[1764713028550,0.71,139.5,139.45,36.49352969]
[1764713028551,0.71,139.5,139.46,7.17051484]
[1764713030441,0.71,139.5,139.46,28.20614101]
[1764713031947,9.61,139.52,139.47,0.64]
[1764713032259,9.61,139.52,139.47,3.10933907]
[1764713032260,0.71,139.51,139.47,3.10933907]
[1764713032459,0.71,139.51,139.48,7.16948666]
[1764713033634,0.71,139.51,139.48,10.27882573]
[1764713034063,0.71,139.51,139.48,7.16948666]
[1764713034450,0.71,139.51,139.48,28.20254239]
[1764713034758,0.71,139.51,139.48,25.09320332]
[1764713034950,0.71,139.51,139.48,28.20254239]
[1764713035149,8.63,139.51,139.48,28.20254239]
[1764713035349,8.63,139.51,139.48,25.09320332]
[1764713035553,0.71,139.5,139.48,28.20254239]
[1764713036752,7.92,139.51,139.48,28.20254239]
[1764713037049,8.63,139.51,139.48,28.20254239]
[1764713037444,7.92,139.51,139.48,28.20254239]
[1764713037674,0.71,139.5,139.48,28.20254239]
[1764713038470,7.92,139.51,139.48,28.20254239]
[1764713038670,8.63,139.51,139.48,28.20254239]
[1764713038975,8.63,139.51,139.49,3.10933907]
[1764713039171,1.3,139.52,139.49,3.10933907]
[1764713039354,2.01,139.52,139.49,0.64]
[1764713039675,2.01,139.52,139.48,25.73320332]
[1764713040254,1.3,139.52,139.48,25.73320332]
[1764713040469,0.71,139.51,139.48,25.73320332]
[1764713041277,2.01,139.52,139.48,25.73320332]
[1764713041676,0.21,139.51,139.48,25.73320332]
[1764713041856,1.3,139.52,139.48,25.09320332]
[1764713042181,1.3,139.52,139.48,25.76320332]
[1764713043262,1.3,139.52,139.48,25.09320332]
[1764713043463,1.3,139.52,139.49,0.67]
[1764713043667,0.71,139.51,139.48,25.76320332]
[1764713044372,2.01,139.52,139.48,25.76320332]
[1764713044674,2.01,139.52,139.49,0.67]
[1764713045687,1.3,139.52,139.48,25.09320332]
[1764713045860,0.71,139.51,139.48,25.76320332]
[1764713046173,9.2,139.52,139.49,0.67]
[1764713046474,9.2,139.52,139.5,7.16845878]
[1764713046475,9.91,139.52,139.5,7.16845878]
[1764713047452,2.01,139.52,139.5,7.16845878]
[1764713047679,9.91,139.52,139.5,7.16845878]
[1764713047860,9.2,139.52,139.5,7.16845878]
[1764713048068,0.71,139.51,139.5,7.16845878]
[1764713048274,9.2,139.52,139.5,7.16845878]
[1764713048576,9.91,139.52,139.49,3.77933907]
[1764713049082,1.3,139.52,139.5,0.67]
[1764713049258,1.0,139.52,139.51,3.10933907]
[1764713049462,1.0,139.52,139.51,3.77933907]
[1764713050567,1.0,139.52,139.51,10.94728402]
[1764713051066,1.0,139.52,139.51,10.27728402]
[1764713051267,1.0,139.52,139.51,10.94728402]
[1764713051666,1.0,139.52,139.51,7.83794495]
[1764713051870,1.0,139.52,139.51,10.94728402]
[1764713055372,1.0,139.52,139.51,10.99728402]
[1764713056167,0.1,139.56,139.54,16.308864]
[1764713056374,0.1,139.56,139.55,3.10933907]
[1764713056575,0.1,139.56,139.55,3.24933907]
[1764713056767,0.1,139.56,139.55,10.41522943]
[1764713057295,0.1,139.56,139.55,7.30589036]
[1764713057586,0.1,139.56,139.55,10.41522943]
[1764713057784,0.1,139.56,139.55,7.16589036]
[1764713058090,0.1,139.56,139.55,10.41522943]
[1764713058288,1e-08,139.56,139.55,10.41522943]
[1764713060983,1e-08,139.56,139.55,10.27522943]
[1764713062093,1e-08,139.56,139.55,10.41522943]
[1764713066790,1e-08,139.56,139.55,10.27522943]
[1764713067194,1e-08,139.56,139.55,10.41522943]
[1764713070420,1e-08,139.56,139.55,10.27522943]
[1764713071284,1e-08,139.56,139.55,10.41522943]
[1764713072797,1e-08,139.56,139.55,10.27522943]
[1764713072972,1e-08,139.58,139.57,25.11880892]
[1764713073306,0.1,139.63,139.57,11.00933907]
[1764713073470,0.69,139.59,139.55,41.52948026]
[1764713073670,0.69,139.59,139.58,3.10933907]
[1764713074380,0.1,139.63,139.59,25.07342932]
[1764713074381,0.69,139.6,139.59,25.07342932]
[1764713074701,0.69,139.6,139.59,28.18276839]
[1764713075096,0.69,139.6,139.59,25.07342932]
[1764713075276,0.69,139.6,139.59,28.18276839]
[1764713077725,0.69,139.6,139.59,10.27317602]
[1764713079295,0.69,139.6,139.59,7.16383695]
[1764713079684,0.69,139.6,139.59,10.27317602]
[1764713080379,0.69,139.6,139.59,4.85340655]
[1764713080581,1.69,139.6,139.58,4.85340655]
[1764713081496,0.65,139.59,139.58,4.85340655]
[1764713082804,0.65,139.59,139.57,4.85340655]
[1764713083009,0.65,139.59,139.55,60.91006806]
[1764713083307,0.65,139.59,139.56,4.85340655]
[1764713083605,0.65,139.59,139.57,7.1648635]
[1764713085092,0.65,139.59,139.57,12.01827005]
[1764713085492,0.65,139.59,139.57,7.1648635]
[1764713087906,0.65,139.59,139.56,7.16515086]
[1764713088087,5.80340655,139.59,139.54,22.76876592]
[1764713088503,0.66,139.58,139.54,22.76876592]
[1764713088906,0.66,139.58,139.56,4.85340655]
[1764713089389,0.66,139.58,139.55,29.9340163]
[1764713089790,8.56,139.58,139.55,29.9340163]
[1764713090204,0.66,139.57,139.55,29.9340163]
[1764713091315,5.51340655,139.57,139.53,25.08333664]
[1764713091494,0.66,139.57,139.53,29.93674319]
[1764713091694,0.66,139.56,139.54,4.85340655]
[1764713092093,0.66,139.56,139.53,29.93674319]
[1764713092294,0.66,139.56,139.54,4.85340655]
[1764713092489,0.66,139.56,139.53,29.93674319]
[1764713092795,0.66,139.56,139.53,12.01988644]
[1764713093602,0.66,139.56,139.54,4.85340655]
[1764713093805,8.56,139.56,139.55,7.16589036]
[1764713094603,0.66,139.56,139.55,7.16589036]
[1764713094804,8.56,139.56,139.55,7.16589036]
[1764713095723,0.66,139.56,139.55,7.16589036]
[1764713095907,8.56,139.56,139.55,7.16589036]
[1764713097091,0.66,139.56,139.55,7.16589036]
[1764713097296,8.56,139.56,139.55,7.16589036]
[1764713100733,8.56,139.56,139.54,7.16640389]
[1764713100909,0.66,139.55,139.54,7.16640389]
[1764713101222,0.66,139.55,139.53,7.16676072]
[1764713101394,0.66,139.55,139.52,7.16723439]
[1764713101593,5.51340655,139.55,139.51,4.85340655]
[1764713101896,4.85340655,139.52,139.48,7.16915555]
[1764713102112,7.9,139.51,139.48,7.16915555]
[1764713102320,8.56,139.51,139.48,12.0225621]
[1764713102503,0.66,139.5,139.48,7.16915555]
[1764713102805,13.66335147,139.49,139.45,7.17102904]
[1764713103008,12.75340655,139.48,139.43,5.05340655]
[1764713103206,13.41340655,139.48,139.43,5.05340655]
[1764713103402,5.51340655,139.47,139.43,0.2]
[1764713103812,0.66,139.46,139.43,7.37191485]
[1764713104011,7.9,139.45,139.43,7.37191485]
[1764713104418,0.66,139.44,139.43,7.37191485]
[1764713104613,0.66,139.44,139.43,12.2253214]
[1764713105303,0.66,139.44,139.43,7.37191485]
[1764713106027,0.66,139.44,139.43,12.2253214]
[1764713106622,0.66,139.44,139.43,7.37191485]
[1764713109628,8.56,139.45,139.43,30.15546555]
[1764713110027,0.66,139.44,139.43,30.15546555]
[1764713111925,5.15340655,139.48,139.43,30.15546555]
[1764713112230,8.58,139.45,139.43,30.15546555]
[1764713112621,7.9,139.45,139.43,30.15546555]
[1764713112826,0.68,139.44,139.43,7.37191485]
[1764713115246,0.68,139.44,139.43,0.2]
[1764713115720,0.68,139.44,139.41,5.05340655]
[1764713115721,8.80994492,139.43,139.41,0.2]
[1764713115928,8.58,139.42,139.41,0.2]
[1764713118628,29.74227055,139.42,139.41,0.2]
[1764713118939,24.888864,139.42,139.41,0.2]
[1764713119437,16.988864,139.42,139.41,7.37308657]
[1764713119615,24.888864,139.42,139.41,7.37308657]
[1764713120022,0.3,139.47,139.41,12.22649312]
[1764713120225,0.68,139.43,139.41,7.37308657]
[1764713120511,7.9,139.42,139.41,0.2]
[1764713120938,8.58,139.42,139.41,0.2]
[1764713121327,8.58,139.42,139.41,7.37308657]
[1764713122340,7.9,139.42,139.41,30.15920956]
[1764713126060,0.98,139.46,139.41,30.49920956]
[1764713126215,8.88,139.46,139.44,4.85340655]
[1764713126419,0.68,139.45,139.41,25.30580301]
[1764713126721,0.68,139.45,139.43,4.85340655]
[1764713127520,0.68,139.45,139.44,7.17154331]
[1764713129731,0.68,139.47,139.44,12.02494986]
[1764713129941,8.58,139.46,139.45,4.85340655]
[1764713130937,8.58,139.46,139.45,12.02443559]
[1764713131938,9.10994492,139.49,139.45,12.02443559]
[1764713132137,7.9,139.48,139.47,4.85340655]
[1764713132646,7.9,139.48,139.46,5.19340655]
[1764713132818,122.41787157,139.53,139.48,7.16948666]
[1764713132819,0.68,139.51,139.48,7.16948666]
[1764713133019,7.9,139.5,139.48,12.02289321]
[1764713133319,0.68,139.52,139.49,4.85340655]
[1764713133534,5.53340655,139.55,139.5,4.85340655]
[1764713133836,7.9,139.54,139.5,4.85340655]
[1764713134039,8.80994492,139.53,139.49,4.85340655]
[1764713134240,14.34335147,139.53,139.48,4.85340655]
[1764713134434,0.66,139.52,139.49,4.85340655]
[1764713134636,7.9,139.51,139.49,4.85340655]
[1764713135015,8.56,139.51,139.5,7.16845878]
[1764713135219,8.56,139.51,139.49,7.16886037]
[1764713135419,8.56,139.51,139.49,12.02226692]
[1764713135640,7.9,139.51,139.5,4.85340655]
[1764713135841,16.308864,139.55,139.5,4.85340655]
[1764713136028,24.868864,139.54,139.51,4.85340655]
[1764713136228,7.9,139.53,139.51,4.85340655]
[1764713136416,8.56,139.53,139.51,4.85340655]
[1764713136941,8.56,139.53,139.52,7.16743119]
[1764713139023,8.56,139.53,139.51,7.16794495]
[1764713139218,0.66,139.52,139.51,7.16794495]
[1764713140337,0.96,139.52,139.5,7.1682661]
[1764713140742,0.66,139.51,139.5,7.1682661]
[1764713141248,8.56,139.51,139.5,7.1682661]
[1764713141835,8.2,139.52,139.5,7.1682661]
[1764713142446,8.88,139.52,139.5,7.1682661]
[1764713145544,8.2,139.52,139.5,10.27821195]
[1764713146648,8.88,139.52,139.5,10.27821195]
[1764713149556,8.58,139.52,139.5,10.27821195]
[1764713150946,8.58,139.52,139.51,3.10994585]
[1764713151453,7.9,139.52,139.51,3.10994585]
[1764713151760,7.9,139.52,139.5,10.27821195]
[1764713152452,7.9,139.52,139.5,10.61821195]
[1764713152657,7.9,139.53,139.5,28.5393589]
[1764713152859,8.58,139.53,139.5,28.5393589]
[1764713153153,8.58,139.53,139.5,28.1993589]
[1764713153858,7.9,139.53,139.5,25.08941305]
[1764713154052,8.58,139.53,139.5,25.08941305]
[1764713154765,0.68,139.52,139.5,25.08941305]
[1764713156441,0.68,139.52,139.5,21.0310928]
[1764713158045,0.68,139.52,139.5,28.19955158]
[1764713160343,7.9,139.53,139.51,3.10994585]
[1764713160542,0.68,139.54,139.51,3.10994585]
[1764713160740,7.9,139.53,139.51,3.10994585]
[1764713160940,8.58,139.54,139.52,3.10994585]
[1764713161362,8.58,139.54,139.5,25.08960573]
[1764713161559,0.68,139.53,139.52,3.10994585]
[1764713161754,0.68,139.53,139.51,3.10994585]
[1764713162141,0.68,139.53,139.52,3.10994585]
[1764713162556,0.68,139.53,139.52,10.27737704]
[1764713162863,0.68,139.53,139.52,7.16743119]
[1764713163845,0.68,139.53,139.51,7.16770305]
[1764713170158,0.68,139.53,139.51,10.2776489]
[1764713170554,7.9,139.53,139.52,3.10994585]
[1764713170858,7.9,139.54,139.52,28.53595502]
[1764713171250,0.68,139.56,139.53,3.10994585]
[1764713171468,8.58,139.56,139.54,3.10994585]
[1764713171778,0.68,139.55,139.53,3.10994585]
[1764713172160,7.9,139.56,139.52,25.42600917]
[1764713172161,8.56,139.56,139.54,3.10994585]
[1764713173078,8.56,139.56,139.55,7.16589036]
[1764713173273,7.9,139.56,139.55,7.16589036]
[1764713173759,8.56,139.56,139.55,7.16589036]
[1764713173961,0.66,139.56,139.55,7.16589036]
[1764713174366,8.56,139.57,139.55,7.16589036]
[1764713174572,8.56,139.57,139.55,10.27583621]
[1764713174972,0.66,139.56,139.54,7.16620935]
[1764713175274,0.66,139.56,139.54,10.2761552]
[1764713175465,0.66,139.56,139.54,7.16620935]
[1764713175664,7.9,139.57,139.55,3.10994585]
[1764713175871,0.66,139.58,139.55,3.10994585]
[1764713176071,8.56,139.58,139.55,3.10994585]
[1764713176578,0.66,139.57,139.54,25.08221909]
[1764713176871,7.9,139.58,139.55,3.10994585]
[1764713177078,0.66,139.57,139.56,7.16537689]
[1764713181761,0.66,139.57,139.55,7.16567527]
[1764713183891,0.66,139.57,139.53,7.16659799]
[1764713184064,0.66,139.57,139.54,3.10994585]
[1764713184387,7.9,139.58,139.56,3.10994585]
[1764713184685,0.66,139.57,139.56,3.10994585]
[1764713186268,0.66,139.57,139.55,25.08061626]
[1764713186682,0.66,139.57,139.55,17.9147259]
[1764713187486,7.9,139.58,139.55,17.9147259]
[1764713187687,8.56,139.58,139.56,3.10994585]
[1764713187886,0.66,139.57,139.56,3.10994585]
[1764713189081,0.66,139.57,139.56,10.27532274]
[1764713190474,1.1,139.6,139.56,28.52876498]
[1764713190676,1.76,139.6,139.59,3.10994585]
[1764713190974,0.66,139.59,139.57,10.274615]
[1764713192899,16.70994492,139.58,139.54,3.10994585]
[1764713193094,7.1648635,139.57,139.54,3.10994585]
[1764713193274,7.8248635,139.57,139.54,3.10994585]
[1764713193474,0.66,139.56,139.54,3.10994585]
[1764713194577,7.9,139.55,139.54,3.10994585]
[1764713194974,8.56,139.55,139.54,3.10994585]
[1764713195292,8.56,139.55,139.53,7.1665122]
[1764713195474,0.66,139.54,139.53,7.1665122]
[1764713195975,0.66,139.54,139.53,10.27645805]
[1764713197994,8.61,139.55,139.53,10.27645805]
[1764713198317,7.9,139.55,139.54,3.10994585]
[1764713198601,8.61,139.55,139.54,3.10994585]
[1764713199102,0.3,139.58,139.55,7.16589036]
[1764713199404,8.61,139.57,139.55,10.27583621]
[1764713200997,0.71,139.57,139.55,10.27583621]
[1764713201192,8.61,139.57,139.55,10.27583621]
[1764713201896,0.67,139.56,139.55,10.27583621]
[1764713202306,0.67,139.56,139.55,7.16589036]
[1764713205793,0.97,139.58,139.55,29.9365305]
[1764713206102,7.9,139.57,139.55,29.9365305]
[1764713206275,8.57,139.57,139.55,29.9365305]
[1764713206477,7.9,139.57,139.55,29.9365305]
[1764713206905,8.57,139.59,139.56,4.85591424]
[1764713207207,8.57,139.59,139.55,25.42061626]
[1764713207505,0.67,139.58,139.56,4.85591424]
[1764713207687,0.67,139.58,139.57,7.1648635]
[1764713208395,0.67,139.58,139.56,12.02107751]
[1764713209498,0.67,139.58,139.55,25.08061626]
[1764713209698,0.67,139.58,139.56,4.85591424]
[1764713210911,0.67,139.58,139.56,12.02082862]
[1764713213016,8.80994492,139.57,139.53,4.85591424]
[1764713213209,7.9,139.56,139.53,4.85591424]
[1764713213405,8.57,139.56,139.53,4.85591424]
[1764713213595,0.67,139.55,139.52,4.85591424]
[1764713214008,0.67,139.55,139.53,12.02283174]
[1764713216122,7.9,139.55,139.54,4.85591424]
[1764713217215,0.3,139.58,139.54,4.85591424]
[1764713217419,9.0,139.6,139.57,4.85591424]
[1764713217625,9.67,139.6,139.58,12.02026443]
[1764713217831,0.67,139.59,139.56,4.85591424]
[1764713218694,0.67,139.59,139.55,4.85591424]
[1764713218900,9.10994492,139.58,139.54,12.02231813]
[1764713219107,8.2,139.57,139.55,4.85591424]
[1764713219396,8.87,139.57,139.55,4.85591424]
[1764713219605,0.67,139.56,139.55,12.0218046]
[1764713225128,0.67,139.56,139.55,4.85591424]
[1764713225517,0.67,139.56,139.55,12.0218046]
[1764713225718,0.67,139.56,139.55,7.16589036]
[1764713228611,0.67,139.56,139.54,12.02213236]
[1764713230232,4.85591424,139.59,139.55,5.19591424]
[1764713230233,7.9,139.59,139.55,5.19591424]
[1764713230553,8.57,139.59,139.57,4.85591424]
[1764713230746,8.57,139.59,139.58,4.85591424]
[1764713230940,8.57,139.59,139.55,0.34]
[1764713230941,8.57,139.59,139.57,4.85591424]
[1764713231612,0.67,139.58,139.57,4.85591424]
[1764713231913,8.57,139.58,139.57,7.1648635]
[1764713233647,16.308864,139.56,139.51,25.08780732]
[1764713233814,7.9,139.55,139.52,4.85591424]
[1764713234012,8.58,139.55,139.52,4.85591424]
[1764713234344,0.68,139.54,139.53,4.85591424]
[1764713234809,0.68,139.54,139.52,4.85591424]
[1764713235814,0.68,139.54,139.52,12.02295865]
[1764713238943,0.68,139.54,139.51,4.85591424]
[1764713240433,16.308864,139.52,139.49,7.16874682]
[1764713240639,24.208864,139.52,139.49,7.16874682]
[1764713240934,0.68,139.51,139.49,7.16874682]
[1764713241849,0.68,139.51,139.48,7.16927935]
[1764713242539,0.68,139.51,139.48,12.02519359]
[1764713242852,5.53591424,139.51,139.46,4.85591424]
[1764713243153,0.68,139.51,139.47,5.19591424]
[1764713243438,36.23240013,139.52,139.47,5.19591424]
[1764713243439,0.68,139.5,139.47,4.85591424]
[1764713243944,0.68,139.5,139.48,7.16948666]
[1764713244942,7.9,139.49,139.44,0.34]
[1764713245148,7.9,139.49,139.46,4.85591424]
[1764713245441,8.58,139.49,139.46,4.85591424]
[1764713245944,0.68,139.48,139.46,12.02607438]
[1764713246342,7.9,139.49,139.46,12.02607438]
[1764713246543,8.58,139.49,139.46,12.02607438]
[1764713247124,7.9,139.49,139.46,12.02607438]
[1764713247321,0.68,139.48,139.46,12.02607438]
[1764713247541,8.58,139.49,139.46,12.02607438]
[1764713247844,0.68,139.48,139.46,12.02607438]
[1764713248823,7.9,139.49,139.46,12.02607438]
[1764713249044,8.58,139.49,139.46,12.02607438]
[1764713251923,7.9,139.49,139.46,12.02607438]
[1764713252124,0.68,139.48,139.46,12.02607438]
[1764713252728,8.58,139.49,139.47,4.85591424]
[1764713252930,7.9,139.49,139.47,4.85591424]
[1764713253158,8.58,139.49,139.47,4.85591424]
[1764713253338,7.9,139.49,139.46,12.02607438]
[1764713253530,8.58,139.49,139.46,12.02607438]
[1764713254745,12.02393175,139.51,139.48,4.85591424]
[1764713254746,7.9,139.51,139.48,4.85591424]
[1764713254945,8.58,139.51,139.49,4.85591424]
[1764713255660,0.68,139.5,139.48,7.16934094]
[1764713256757,0.68,139.5,139.48,12.02525518]
[1764713257140,0.68,139.5,139.47,12.02572914]
[1764713257345,4.85591424,139.48,139.41,0.54]
[1764713257546,8.80994492,139.49,139.41,0.2]
[1764713257547,12.75591424,139.47,139.41,0.2]
[1764713257737,12.02694328,139.45,139.41,7.37291752]
[1764713258047,8.58,139.44,139.41,12.22899005]
[1764713258252,8.58,139.44,139.41,7.37307581]
[1764713258453,0.68,139.43,139.41,12.22899005]
[1764713258647,0.68,139.43,139.41,0.2]
[1764713259058,0.68,139.43,139.41,7.37290576]
[1764713259430,7.9,139.44,139.41,12.22882]
[1764713259632,8.58,139.45,139.42,4.85591424]
[1764713259835,8.58,139.45,139.43,7.17205766]
[1764713260130,0.67,139.44,139.43,7.17205766]
[1764713261972,0.67,139.44,139.42,12.02824193]
[1764713262447,0.67,139.44,139.42,10.28603207]
[1764713263662,0.67,139.44,139.41,0.2]
[1764713263864,10.95529834,139.44,139.41,0.2]
[1764713264163,0.3,139.43,139.41,0.2]
[1764713264345,0.97,139.43,139.41,0.2]
[1764713264838,0.67,139.42,139.41,0.2]
[1764713266252,15.74257208,139.42,139.41,0.2]
[1764713266835,27.66622138,139.42,139.41,0.2]
[1764713267654,27.66622138,139.42,139.33,3.11370438]
[1764713267655,16.308864,139.39,139.33,3.11370438]
[1764713267852,7.9,139.38,139.34,7.17650457]
[1764713268059,8.57,139.38,139.34,10.29020895]
[1764713268245,0.67,139.37,139.34,10.29020895]
[1764713268768,16.308864,139.31,139.29,0.2]
[1764713268936,7.9,139.3,139.29,0.2]
[1764713269549,8.57,139.3,139.29,0.2]
[1764713269750,11.68370438,139.3,139.29,0.2]
[1764713269961,43.98126419,139.3,139.29,0.2]